Cogmind - Beta 16 @@@ ROGUE MODE // 2025.11.17 @ 22:13:42 Player: GermanMO Result: Destroyed by S-27 Virus with Autogun Performance ------------- Evolutions (5) 2500 Regions Visited (5) 1000 Robots Destroyed (27) 135 Value Destroyed (802) 802 Prototype IDs (19) 380 Alien Tech Used (0) 0 Bonus (647) 647 TOTAL SCORE: 5464 Bonus ------- Follower Combat Kills 40 Registered with UFD 300 Met Optimus in HQ 500 Friendly Fire -193 Cogmind --------- Core Integrity 0/1000 Matter 290/300 Energy 99/100 System Corruption 2% Temperature Cool (0) Movement Core (50) Location -5/Extension Parts ------- > --- POWER (2) -------- (None) > --- PROPULSION (7) --- (None) > --- UTILITY (6) ------ Advanced ECM Suite > --- WEAPON (2) ------- (None) > --- INVENTORY (5) ---- Wave Gun KE Penetrator DRS Beacon (Ready) Peak State ------------ > --- POWER ------------ Light Deuterium Engine > --- PROPULSION ------- Improved Hover Unit Improved Hover Unit VTOL Module VTOL Module VTOL Module VTOL Module > --- UTILITY ---------- Sensor Array Advanced ECM Suite A0-MCA's Component Scanner Mapping Drone Bay > --- WEAPON ----------- Proton Missile Launcher Katana > --- INVENTORY -------- DRS Beacon [Rating: 42] Favorites ----------- Power Ion Engine Engine Ion Engine Power Core Light Nuclear Core Propulsion VTOL Module Leg Carbon-fiber Leg Wheel Compact Wheel Hover Unit Improved Hover Unit Flight Unit VTOL Module Utility Large Storage Unit Device Sensor Array Storage Large Storage Unit Processor A0-MCA's Component Scanner Protection Improved Weapon Shielding Weapon Heavy Riot Gun Energy Gun Heavy Riot Gun Energy Cannon Disruptor Cannon Ballistic Gun Assault Rifle Ballistic Cannon Gauss Cannon Launcher Proton Missile Launcher Slashing Weapon Katana Build | -11 -10 -10 -7 -5 -5 ------- Run | Yrd Mat Sub Scr Fac Ext Slots Evolved 10 | . . . . 10 . Power 1 | . . . . 1 . Propulsion 5 | . . . . 5 . Utility 4 | . . . . 4 . Weapon . | . . . . . . Parts Attached 33 | 2 4 4 7 7 9 Power 3 | . 1 . 1 . 1 Engine 2 | . 1 . 1 . . Core 1 | . . . . . 1 Reactor . | . . . . . . Propulsion 12 | . 1 1 2 4 4 Treads . | . . . . . . Leg 1 | . . . . . 1 Wheel 2 | . 1 1 . . . Hover 2 | . . . . 2 . Flight 7 | . . . 2 2 3 Utility 7 | . 2 . 3 2 . Device 4 | . 1 . 1 2 . Storage 1 | . 1 . . . . Processor 1 | . . . 1 . . Hackware . | . . . . . . Protection 1 | . . . 1 . . Artifact . | . . . . . . Weapon 11 | 2 . 3 1 1 4 Energy Gun 2 | 1 . 1 . . . Energy Cannon 1 | . . . . . 1 Ballistic Gun 4 | 1 . 1 . . 2 Ballistic Cannon 1 | . . . . . 1 Launcher 1 | . . . . 1 . Special Weapon . | . . . . . . Impact Weapon . | . . . . . . Slashing Weapon 2 | . . 1 1 . . Piercing Weapon . | . . . . . . Special Melee Weapon . | . . . . . . Unidentified Prototypes . | . . . . . . Corrupted Parts 1 | . . . . . 1 System Corruption 1 | . . . . . 1 Parts Lost 23 | . . 5 . . 18 Power 1 | . . . . . 1 Propulsion 10 | . . 1 . . 9 Utility 4 | . . 1 . . 3 Weapon 8 | . . 3 . . 5 Highest Loss Streak 7 | . . 5 . . 7 To Critical Strikes . | . . . . . . Average Backups 6 | 1 4 5 9 2 2 Power . | . . . 1 . . Propulsion 1 | . . . 1 . . Utility 2 | . 1 3 3 . . Weapon 2 | . 1 1 2 2 1 Tool/Special . | . . . . . . Unused Backups 14 | . . . 12 . 2 Power 2 | . . . 2 . . Propulsion 3 | . . . 3 . . Utility 5 | . . . 5 . . Weapon 4 | . . . 2 . 2 Tool/Special . | . . . . . . Average Slot Usage (%) 67 | . 74 77 77 62 37 Engine 10 | . 12 14 14 5 1 Wheel 8 | . 12 13 12 . . Hover 1 | . . . . 8 2 Flight 4 | . . . 2 21 7 Device 6 | . 12 9 1 13 10 Storage 8 | . 7 14 12 . . Processor 2 | . . . 2 5 4 Protection 2 | . . . 4 . . Energy Gun 8 | . 14 10 12 . . Ballistic Gun 2 | . 12 10 . . . Slashing Weapon 8 | . . 4 14 5 2 Peak Build Rating 42 | 1 8 9 25 42 40 Average Rating 16 | . 7 7 14 35 25 On Entrance 13 | . 1 8 9 22 40 Avg Prop Armor Cover (%) 10 | . . . . 11 7 Naked Turns 21 | . . . . . 21 Heaviest Build 33 | 2 30 31 33 14 21 Greatest Support 16 | 3 10 16 16 16 16 Greatest Overweight (x) 5 | . 2 2 2 . 5 Average Overweight (x) . | . 1 1 1 . . Largest Inventory Capacity 15 | 5 15 15 15 5 5 Average Capacity 10 | 5 10 15 13 5 5 Most Carried 15 | 5 6 8 15 5 5 Average Carried 7 | 1 4 5 10 3 3 Final Capacity 15 | 5 15 15 5 5 5 Final Carried 7 | 5 6 7 5 4 3 Class Distribution -------------------- 81% | Mutant 18% | Sprinter Dominant Class ---------------- Mutant | -10/Materials Mutant | -10/Subcaves Mutant | -7/Scraptown Sprinter | -5/Factory Mutant | -5/Extension Resources | -11 -10 -10 -7 -5 -5 ----------- Run | Yrd Mat Sub Scr Fac Ext Matter Collected 994 | 250 71 101 44 34 494 Remotely . | . . . . . . Salvage Created 1104 | 203 143 208 . 34 516 Parts 58 | 9 4 20 . 2 23 Haulers Intercepted . | . . . . . . Recyclers Shooed 1 | . . . . . 1 Parts Field Recycled . | . . . . . . Retrieved Matter . | . . . . . . Parts Self-Destructed 6 | . . 6 . . . Prevented . | . . . . . . Parts Restored . | . . . . . . Kills | -11 -10 -10 -7 -5 -5 ------- Run | Yrd Mat Sub Scr Fac Ext Combat Hostiles Destroyed 16 | . 3 6 . . 7 Melee 3 | . . 1 . . 2 Guns 6 | . . 5 . . 1 Cannons 2 | . . . . . 2 AOE 4 | . 3 . . . 1 Classes Destroyed 10 | 3 2 2 . . 3 Worker 2 | 2 . . . . . Builder 1 | . . . . . 1 Tunneler 3 | 3 . . . . . Recycler 1 | 1 . . . . . Operator 1 | . . . . . 1 Watcher 3 | . 1 . . 1 1 Swarmer 3 | . . 2 . . 1 Grunt 4 | . 3 . . . 1 Sentry 4 | . . . . . 4 Subdweller 4 | . . 4 . . . Thug 1 | . . . . . 1 Best Kill Streak 3 | 2 3 2 . 1 2 Combat Bots Only 2 | . 2 2 . . 1 Max Kills in Single Turn 2 | 2 2 1 . 1 1 Gunslinging . | . . . . . . Exploded 2 | . 2 . . . 1 Melee 1 | . . 1 . . 1 Uniques/NPCs Destroyed . | . . . . . . Combat | -11 -10 -10 -7 -5 -5 -------- Run | Yrd Mat Sub Scr Fac Ext Hostile Shots Fired 211 | . 2 50 . . 159 Missed 84 | . . 21 . . 63 Hits 127 | . 2 29 . . 96 Projectile 127 | . 2 29 . . 96 AOE 1 | . . . . . 1 Critical Strikes 6 | . . 1 . . 5 Damage Taken 2747 | . 29 601 . . 2117 Core 1180 | . 29 149 . . 1002 Absorbed by Shields 119 | . . . . . 119 Core Remaining (%) 64 | 100 . . 28 . . Volleys Fired 134 | 27 7 33 . . 67 Largest 2 | 1 2 2 . . 1 Hottest 81 | 40 60 60 . . 81 Shots Fired 169 | 27 14 61 . . 67 Gun 122 | 27 14 61 . . 20 Cannon 38 | . . . . . 38 Launcher 9 | . . . . . 9 Special . | . . . . . . Kinetic 114 | 10 7 40 . . 57 Thermal . | . . . . . . Explosive . | . . . . . . Electromagnetic 55 | 17 7 21 . . 10 Robot Hit Streak 19 | 4 5 19 . . 12 Robot Miss Streak 5 | 3 2 2 . . 5 Penetration Max 1 | . . . . . 1 Secondary Targets 1 | . . 1 . . . Max Gunslinging Chain 1 | . . 1 . . . Shots Hit Robots 133 | 15 10 49 . 2 57 Core Hits 55 | 7 6 14 . 1 27 Critical Kills 1 | . . . . . 1 Critical Parts Destroyed . | . . . . . . Critical Strikes 4 | . . . . . 4 Destroy 1 | . . . . . 1 Blast 1 | . . . . . 1 Sever 2 | . . . . . 2 Melee Attacks 40 | . . 1 22 5 12 Impact . | . . . . . . Slashing 40 | . . 1 22 5 12 Piercing . | . . . . . . Sneak Attacks . | . . . . . . Combat Hostiles . | . . . . . . Follow-up Attacks . | . . . . . . Damage Inflicted 3331 | 280 282 539 . 64 2166 Guns 1394 | 197 148 514 . . 535 Cannons 872 | . . . . . 872 Explosions 620 | 83 134 . . . 403 Melee 445 | . . 25 . 64 356 Ramming . | . . . . . . Kinetic 1867 | 66 50 362 . . 1389 Thermal 217 | 83 134 . . . . Explosive . | . . . . . . Electromagnetic 802 | 131 98 152 . . 421 Impact . | . . . . . . Slashing 445 | . . 25 . 64 356 Piercing . | . . . . . . Highest Corruption 2 | . . . . . 2 Average Corruption 1 | . . . . . 1 Corruption Purged . | . . . . . . Corruption Blocked . | . . . . . . Effects 5 | . . . . . 5 Message Errors 1 | . . . . . 1 Matter Fused 1 | . . . . . 1 Heat Flow Errors 2 | . . . . . 2 Data Loss (minor) 1 | . . . . . 1 Overload Shots . | . . . . . . Overflow Damage 31 | . . . . . 31 Projectiles 18 | . . . . . 18 Explosions 13 | . . . . . 13 Melee . | . . . . . . Knockbacks 3 | . . . . . 3 Impact . | . . . . . . Kinetic 3 | . . . . . 3 Secondary . | . . . . . . Self-Inflicted Damage 84 | . . . . . 84 Shots 4 | . . . . . 4 Rammed . | . . . . . . Targets Rammed . | . . . . . . Kicked . | . . . . . . Crushed . | . . . . . . Highest Temperature 156 | 15 9 . . . 156 Average Temperature 40 | 10 9 . . . 73 Received Heat Transfer 561 | . 18 30 . . 513 Siege Activations . | . . . . . . Martial Activations . | . . . . . . Shielding Activations . | . . . . . . Robots Disrupted . | . . . . . . Combat Hostiles . | . . . . . . Robots Corrupted . | . . . . . . Combat Hostiles . | . . . . . . Parts Fried 3 | 1 . 1 . . 1 Impact Corruptions . | . . . . . . Robots Melted . | . . . . . . Combat Hostiles . | . . . . . . Parts Melted 1 | . . . . . 1 Heat Transferred 100 | . 100 . . . . Parts Sabotaged . | . . . . . . Parts Stolen . | . . . . . . Parts Stripped . | . . . . . . Power Chain Reactions 4 | 2 2 . . . . Alert | -11 -10 -10 -7 -5 -5 ------- Run | Yrd Mat Sub Scr Fac Ext Maximum Alert Level . | . . . . . . Low Security (%) 100 | 100 100 . . 100 100 Level 1 . | . . . . . . Level 2 . | . . . . . . Level 3 . | . . . . . . Level 4 . | . . . . . . Level 5 . | . . . . . . High Security . | . . . . . . Max Security . | . . . . . . Peak Influence 120 | 10 50 . . 15 120 Initial . | . . . . . . Average 25 | 1 19 . . 2 46 Influence Increases 635 | 30 83 50 . 45 427 Destroy 0b10 Robot/C 280 | . 60 40 . . 180 Destroy 0b10 Robot/NC 55 | 30 5 . . 5 15 Destroy Leader 46 | . 12 10 . 2 22 Allied During Kill 15 | . . . . . 15 Successful Hack 18 | . . . . 4 14 Destroy Structure 26 | . 6 . . 4 16 Partial Spotted 30 | . . . . 30 . Lose Combat Pursuer 165 | . . . . . 165 Influence Decreases 575 | 30 83 50 . 45 367 Time Decay 439 | 30 83 50 . 45 231 Lost Part 116 | . . . . . 116 Lost Ally 20 | . . . . . 20 Squads Dispatched 3 | . . . . 1 2 Investigation 1 | . . . . . 1 Extermination 1 | . . . . 1 . Reinforcement 1 | . . . . . 1 Assault . | . . . . . . Garrison . | . . . . . . Intercept . | . . . . . . Searches Triggered . | . . . . . . Construction Impeded . | . . . . . . Haulers Reinforced . | . . . . . . Active Scanning Responses . | . . . . . . Cargo Convoy Interrupts . | . . . . . . Stealth | -11 -10 -10 -7 -5 -5 --------- Run | Yrd Mat Sub Scr Fac Ext Distress Signals 2 | . 1 . . . 1 Communications Jammed . | . . . . . . Distress Signals . | . . . . . . Times Spotted 51 | . 7 7 . 2 35 Peak Tracking Total 10 | . 3 3 . 1 10 Tactical Retreats 6 | . . . . . 6 Traps | -11 -10 -10 -7 -5 -5 ------- Run | Yrd Mat Sub Scr Fac Ext Traps Triggered 2 | . . . . . 2 Indirectly 1 | . . . . . 1 Trap Hack Attempts . | . . . . . . Triggered . | . . . . . . Disarmed . | . . . . . . Reprogrammed . | . . . . . . Reused . | . . . . . . Traps Extracted . | . . . . . . Installed . | . . . . . . Triggered . | . . . . . . Machines | -11 -10 -10 -7 -5 -5 ---------- Run | Yrd Mat Sub Scr Fac Ext Machines Disabled . | . . . . . . Max in Single Turn . | . . . . . . Machines Repaired . | . . . . . . Machines Dismantled . | . . . . . . Machines Sabotaged . | . . . . . . Overloaded Fab Kills . | . . . . . . Hacking | -11 -10 -10 -7 -5 -5 --------- Run | Yrd Mat Sub Scr Fac Ext Machines Accessed 8 | . . . 5 1 2 Terminals 3 | . . . . 1 2 Fabricators . | . . . . . . Repair Stations . | . . . . . . Recycling Units . | . . . . . . Scanalyzers . | . . . . . . Garrison Access . | . . . . . . Total Hacks 31 | . . . 26 1 4 Successful 29 | . . . 26 1 2 Failed 2 | . . . . . 2 Catastrophic . | . . . . . . Database Lockouts . | . . . . . . Manual . | . . . . . . Terminals 5 | . . . . 1 4 Fabricators . | . . . . . . Repair Stations . | . . . . . . Recycling Units . | . . . . . . Scanalyzers . | . . . . . . Garrison Access . | . . . . . . Terminal Hacks 29 | . . . 26 1 2 Record 25 | . . . 25 . . Open Door 2 | . . . . . 2 Emergency Access Points 1 | . . . . 1 . Proto ID Catalog 1 | . . . 1 . . Fabricator Hacks . | . . . . . . Repair Station Hacks . | . . . . . . Recycling Unit Hacks . | . . . . . . Scanalyzer . | . . . . . . Garrison Access Hacks . | . . . . . . Unauthorized Hacks . | . . . . . . Terminals . | . . . . . . Fabricators . | . . . . . . Repair Stations . | . . . . . . Recycling Units . | . . . . . . Scanalyzers . | . . . . . . Garrison Access . | . . . . . . Data Cores Recovered 1 | . . . . . 1 Used . | . . . . . . Hacking Detections 2 | . . . . 1 1 Full Trace Events 1 | . . . . . 1 Feedback Events . | . . . . . . Feedback Blocked . | . . . . . . Robot Schematics Acquired . | . . . . . . Robots Built . | . . . . . . Authchips . | . . . . . . Time . | . . . . . . Total Robot Build Rating . | . . . . . . Part Schematics Acquired . | . . . . . . Parts Built . | . . . . . . Authchips . | . . . . . . Time . | . . . . . . Total Part Build Rating . | . . . . . . Part Studies Acquired . | . . . . . . Parts Repaired . | . . . . . . Time . | . . . . . . Parts Recycled . | . . . . . . Recycled Matter . | . . . . . . Retrieved Matter . | . . . . . . Retrieved Components . | . . . . . . Parts Scanalyzed . | . . . . . . Part Schematics Acquired . | . . . . . . Parts Damaged . | . . . . . . Bothacking | -11 -10 -10 -7 -5 -5 ------------ Run | Yrd Mat Sub Scr Fac Ext Used RIF Installer . | . . . . . . Robots Hacked . | . . . . . . Non-combat . | . . . . . . Combat . | . . . . . . Robot Hacks Applied . | . . . . . . Relay Couplers Released . | . . . . . . Fabnet Peak Effective % . | . . . . . . Robots Rewired . | . . . . . . Allies Hacked . | . . . . . . Hacks Repelled . | . . . . . . Allies | -11 -10 -10 -7 -5 -5 -------- Run | Yrd Mat Sub Scr Fac Ext Total Allies 2 | . . . . . 2 Largest Group 2 | . . . . . 2 Highest-Rated Group 190 | . . . . . 190 Highest-Rated Ally 159 | . . . . . 159 Total Orders . | . . . . . . Ally Attacks 31 | . . . . . 31 Total Damage 302 | . . . . . 302 Kills 2 | . . . . . 2 Allies Corrupted 1 | . . . . . 1 Allies Melted . | . . . . . . Intel | -11 -10 -10 -7 -5 -5 ------- Run | Yrd Mat Sub Scr Fac Ext Active Infowar (turns) 1241 | . 250 178 138 247 428 Sensors 812 | . . . 138 247 427 Terrain 428 | . 250 178 . . . ECM 6 | . . . . 5 1 Robot Analysis Total . | . . . . . . Derelict Logs Recovered . | . . . . . . Drone Launches . | . . . . . . Drone Recoveries . | . . . . . . Exploration | -11 -10 -10 -7 -5 -5 ------------- Run | Yrd Mat Sub Scr Fac Ext Turns Passed 2809 | 165 259 272 1322 247 544 Spaces Moved 2243 | 168 195 127 1089 338 326 Core 336 | 168 4 . . . 164 Treads . | . . . . . . Legs 7 | . . . . . 7 Wheels 1204 | . 191 127 886 . . Hover 64 | . . . . . 64 Flight 632 | . . . 203 338 91 Fastest Speed 26 | 50 50 110 32 26 26 Average Speed 84 | 50 96 112 103 27 78 Slowest Speed 435 | 50 110 115 130 32 435 Overloaded Moves . | . . . . . . Propulsion Burnouts . | . . . . . . Robots Hopped . | . . . . . . Potential Cave-ins . | . . . . . . Cave-ins Triggered . | . . . . . . Exploration Rate (%) 28 | 5 34 13 52 7 57 Regions Visited 5 Branch Regions 3 Pre-discovered Areas . | . . . . . . Known Exits Taken . | . . . . . . Unknown Exits Taken 5 | 1 1 1 1 1 . Scrap Searched 3 | . . . 3 . . Spaces Dug 2 | . . . . 2 . Terrain Destroyed 21 | 6 6 . . 2 7 Melee 2 | . . . . 2 . Projectile 7 | . . . . . 7 AOE 12 | 6 6 . . . . Terrain Rammed . | . . . . . . Walls Destroyed . | . . . . . . Machines Disabled . | . . . . . . Actions | -11 -10 -10 -7 -5 -5 --------- Run | Yrd Mat Sub Scr Fac Ext Total 2929 | 221 252 192 1249 485 530 Wait 390 | 17 40 23 97 130 83 Move 2238 | 167 194 126 1088 337 326 Hop . | . . . . . . Pick Up 53 | 7 6 5 20 5 10 Fast Attach 3 | . . . 3 . . Attach 34 | 2 5 4 4 7 12 Detach 3 | . . . . 1 2 Swap 2 | . . . 1 . 1 Drop 17 | 1 . . 14 . 2 Fire 134 | 27 7 33 . . 67 Melee 40 | . . 1 22 5 12 Ram . | . . . . . . Kick . | . . . . . . Crush . | . . . . . . Escape Stasis 15 | . . . . . 15 Rewire . | . . . . . . Trap . | . . . . . . Miscellaneous . | . . . . . . Route ------- -11/Scrapyard -10/Materials (discovered 2 exits: [*Mat] / [*Sub]) -10/Subcaves -7/Scraptown -5/Factory -5/Extension (discovered 2 exits: [*Fac] / [*Cet]) History --------- Turn | Location | Event 6 | -11/Scrapyard | Discovered new exit (range 16) 166 | -11/Scrapyard | Entered Materials 167 | -10/Materials | Met a group of wandering Federalists 310 | -10/Materials | Build established: Mutant 394 | -10/Materials | Discovered new exit (range 9) 422 | -10/Materials | Discovered new exit (range 4) 425 | -10/Materials | Entered Subcaves 426 | -10/Subcaves | Continued accompanying wandering Federalists (2) 426 | -10/Subcaves | Approached by a straggling Scientist 500 | -10/Subcaves | Shifting Twisted Machinery released Sub. Beam Cannon 507 | -10/Subcaves | A swath of the cavern ceiling suddenly collapsed 575 | -10/Subcaves | Core integrity fell below 50% 636 | -10/Subcaves | Lost 5 parts (1n1u3w) 684 | -10/Subcaves | Scientist uncovered a shortcut to Scraptown 697 | -10/Subcaves | Entered Scraptown 866 | -7/Scraptown | Visited UFD Registry 880 | -7/Scraptown | Registered with UFD as "Coglauncher" 909 | -7/Scraptown | Visited Science Testing Area 946 | -7/Scraptown | Visited Cartography Club 1042 | -7/Scraptown | Visited Supply Room 1159 | -7/Scraptown | Visited Modified Component R&D 1250 | -7/Scraptown | Visited Junk Repository 1295 | -7/Scraptown | Visited DA-N13 Charitable Foundation 1307 | -7/Scraptown | Found DCF Scrap (32 items) 1352 | -7/Scraptown | Visited Science Guys 1712 | -7/Scraptown | Visited Derelict Rescue Squad 1722 | -7/Scraptown | Found DRS Beacon 1749 | -7/Scraptown | Visited A0-MCA Data Center 1756 | -7/Scraptown | Given a C rating by A0-MCA 1759 | -7/Scraptown | Found A0-MCA's Component Scanner 1920 | -7/Scraptown | Met Optimus 1920 | -7/Scraptown | Accepted into 0bPrime 2012 | -7/Scraptown | Discovered new exit (range 3) 2019 | -7/Scraptown | Entered Factory 2019 | -5/Factory | Evolved 10 slots: Power x1, Propulsion x5, Utility x4 2150 | -5/Factory | Build established: Sprinter 2259 | -5/Factory | Discovered new exit (range 10) 2266 | -5/Factory | Entered Extension 2351 | -5/Extension | Lost 4 parts (4n) 2361 | -5/Extension | Rescued a captive Derelict 2390 | -5/Extension | Rescued A7 2500 | -5/Extension | P-70 Sage assimilated allied LQ-8WS(g) 2624 | -5/Extension | Lost 5 parts (1p2n1u1w) 2682 | -5/Extension | Extracted ID and sensor layout for unrecognized location from A7's data core 2716 | -5/Extension | Disrupted transfer network 2738 | -5/Extension | Lost 7 parts (2n2u3w) 2742 | -5/Extension | Core integrity fell below 50% 2755 | -5/Extension | Spotted B-75 Beast 2757 | -5/Extension | Spotted B-75 Beast 2765 | -5/Extension | Core integrity fell below 20% 2804 | -5/Extension | Discovered new exit (range 16) 2804 | -5/Extension | Discovered new exit (range 16) 2810 | -5/Extension | Destroyed by S-27 Virus with Autogun Last Messages --------------- 02727_ Acquired 50 matter. 02733_ Acquired 4 matter. 02755_ System corrupted: Component data lost. 02757_ Machine disabled. 02760_ Penetrated by Slug. 02760_ Autogun destroyed. 02760_ Penetrated by Slug. 02761_ Machine disabled. 02762_ Slug penetrates Wall. 02765_ Slug penetrates R-10 Processor. 02766_ K-01 Serf destroyed. 02766_ Slug penetrates R-10 Processor. 02768_ R-10 Processor collects Med. Matter Pod. 02804_ R-10 Processor exits level. 02804_ T-07 Excavator exits level. 02804_ EXIT=FOUND 02805_ U-05 Engineer exits level. 02806_ C-30 ARC bursts open, deploying its payload. 02806_ S-27 Virus unfolds itself. 02808_ R-10 Processor exits level. Map ----- +----------------------------------------------------+ | ?????????????????????????????????? | | ?????????????????????????????????? | | ?????????????????????????????????? | | ?????????????????????????????????? | | ?????????????????????????????????? | | ?????????????????????????????????? | | ?????????????????????????????????? | | ?????????????????????????????????? | | ?????????????????????????????????? | | ?????????????????????????????????? | | ?????????????????????????????????? | | ?????????????????????????????????? | | ?????????????????????????????????? | | ??????????????????????????? #????? | | ??????????????????????????? #????? | | ??????????????????????????? #????? | | ??????????????????????##### ####?? | | ??????????????????????# "" "" #?? | | ####################### " " ### | | s! =# | | ] ss< # | | ss !# | | = ##? | | AA = # | | #+##################### t !u